lending/lending_fUSD_20250303
["ID","MTS","AMOUNT","RATE_DAILY","PERIOD"]
[355200556,1741003832889,-500.0,0.00014887,2]
[355200557,1741003832900,-582.28,0.00014887,2]
[355200558,1741003832909,-500.0,0.00014887,2]
[355200559,1741003832919,-500.0,0.00014887,2]
[355200560,1741003832928,-500.0,0.00014887,2]
[355200561,1741003832938,-1079.42,0.00014887,2]
[355200562,1741003832947,-500.0,0.00014887,2]
[355200563,1741003832957,-500.0,0.00014887,2]
[355200564,1741003832966,-500.0,0.00014887,2]
[355200565,1741003832977,-500.0,0.00014887,2]
[355200566,1741003832987,-500.0,0.00014887,2]
[355200567,1741003832996,-500.0,0.00014887,2]
[355200568,1741003833006,-540.04,0.00014887,2]
[355200569,1741003833016,-500.0,0.00014887,2]
[355200570,1741003833025,-572.76,0.00014887,2]
[355200571,1741003833035,-500.0,0.00014887,2]
[355200572,1741003833044,-500.0,0.00014887,2]
[355200573,1741003833054,-452.26,0.00014887,2]
[355200574,1741003833064,-10655.28618136,0.00014887,2]
[355200575,1741003833083,-1180.71440125,0.00014887,2]
[355200576,1741003833096,-36.79941739,0.00014887,2]
[355200577,1741003833107,-500.0,0.00014887,2]
[355200578,1741003833118,-500.0,0.00014887,2]
[355200579,1741003833128,-574.47,0.00014887,2]
[355200580,1741003833138,-462.2594841,0.00014887,2]
[355200583,1741003837649,-500.0,0.00014886,2]
[355200584,1741003837660,-37.7405159,0.00014887,2]
[355200585,1741003837671,-500.0,0.00014887,2]
[355200586,1741003837681,-500.0,0.00014887,2]
[355200587,1741003837691,-500.0,0.00014887,2]
[355200588,1741003837701,-468.87673678,0.00014887,2]
[355200589,1741003837714,-31.12326322,0.00014887,2]
[355200590,1741003837725,-288.8867186,0.00014887,2]
[355200591,1741003837734,-119.20501818,0.00014887,2]
[355200592,1741003837859,-380.79498182,0.00014887,2]
[355200593,1741003837870,-36.65863095,0.00014887,2]
[355200597,1741003839732,-503.08136905,0.00014887,2]
[355200598,1741003839739,-443.90863095,0.00014887,2]
[355200599,1741003839748,-56.09136905,0.00014887,2]
[355200600,1741003839755,-500.0,0.00014887,2]
[355200601,1741003839762,-148.32382177,0.00014887,2]
[355200602,1741003839875,-1628.162577,0.00014887,2]
[355200603,1741003839886,-2371.87351766,0.00014887,2]
[355200604,1741003840014,-8710.56008357,0.00014887,2]
[355200605,1741003840024,-500.0,0.00014887,2]
[355200606,1741003840034,-500.0,0.00014887,2]
[355200607,1741003840044,-500.0,0.00014887,2]
[355200608,1741003840055,-500.0,0.00014887,2]
[355200609,1741003840064,-500.0,0.00014887,2]
[355200610,1741003840074,-500.0,0.00014887,2]
[355200611,1741003840083,-500.0,0.00014887,2]
[355200612,1741003840092,-657.44,0.00014887,2]
[355200613,1741003840101,-500.0,0.00014887,2]
[355200614,1741003840111,-500.0,0.00014887,2]
[355200615,1741003840120,-554.6,0.00014887,2]
[355200616,1741003840129,-500.0,0.00014887,2]
[355200617,1741003840139,-671.6,0.00014887,2]
[355200618,1741003840150,-500.0,0.00014887,2]
[355200619,1741003840159,-141.05061708,0.00014887,2]
[355200620,1741003840171,-583.24938292,0.00014887,2]
[355200621,1741003840181,-364.48007708,0.00014887,2]
[355200638,1741003842798,-135.51992292,0.00014887,2]
[355200640,1741003842808,-414.48007708,0.00014887,2]
[355200643,1741003842956,-85.51992292,0.00014887,2]
[355200644,1741003842966,-500.0,0.00014887,2]
[355200645,1741003842977,-680.96,0.00014887,2]
[355200646,1741003842987,-14992.82757229,0.00014887,2]
[355200647,1741003843066,-3495.63798343,0.00014887,2]
[355200658,1741003845674,-362.7348387,0.00014887,2]
[355200659,1741003845686,-935.22960558,0.00014887,2]
[355200660,1741003845696,-402.4703935,0.00014887,2]
[355200661,1741003845988,-97.5296065,0.00014887,2]
[355200662,1741003845999,-500.0,0.00014887,2]
[355200663,1741003846009,-500.0,0.00014887,2]
[355200664,1741003846018,-573.79,0.00014887,2]
[355200665,1741003846028,-500.0,0.00014887,2]
[355200666,1741003846037,-500.0,0.00014887,2]
[355200667,1741003846047,-500.0,0.00014887,2]
[355200668,1741003846057,-500.0,0.00014887,2]
[355200669,1741003846068,-500.0,0.00014887,2]
[355200670,1741003846078,-500.0,0.00014887,2]
[355200671,1741003846087,-500.0,0.00014887,2]
[355200672,1741003846097,-500.0,0.00014887,2]
[355200673,1741003846106,-500.0,0.00014887,2]
[355200674,1741003846115,-500.0,0.00014887,2]
[355200675,1741003846125,-570.86,0.00014887,2]
[355200676,1741003846134,-500.0,0.00014887,2]
[355200677,1741003846144,-500.0,0.00014887,2]
[355200678,1741003846153,-500.0,0.00014887,2]
[355200679,1741003846162,-517.48803504,0.00014887,2]
[355200680,1741003846172,-8448.51,0.00014887,2]
[355200681,1741003846182,-538.5,0.00014887,2]
[355200682,1741003846192,-510.66499044,0.00014887,2]
[355200683,1741003846201,-500.0,0.00014887,2]
[355200684,1741003846210,-500.0,0.00014887,2]
[355200685,1741003846219,-500.0,0.00014887,2]
[355200686,1741003846229,-500.0,0.00014887,2]
[355200687,1741003846239,-500.0,0.00014887,2]
[355200688,1741003846249,-500.0,0.00014887,2]
[355200689,1741003846259,-500.0,0.00014887,2]
[355200690,1741003846269,-500.0,0.00014887,2]
[355200691,1741003846279,-500.0,0.00014887,2]
[355200692,1741003846288,-500.0,0.00014887,2]
[355200693,1741003846298,-500.0,0.00014887,2]
[355200694,1741003846307,-23966.34,0.00014887,2]
[355200695,1741003846317,-546.92,0.00014887,2]
[355200696,1741003846326,-7420.43,0.00014887,2]
[355200697,1741003846336,-6519.44,0.00014887,2]
[355200698,1741003846346,-500.0,0.00014887,2]
[355200699,1741003846355,-500.0,0.00014887,2]
[355200701,1741003846365,-500.0,0.00014887,2]
[355200703,1741003846374,-500.0,0.00014887,2]
[355200706,1741003846563,-9024.18,0.00014887,2]
[355200707,1741003846573,-500.0,0.00014887,2]
[355200708,1741003846583,-500.0,0.00014887,2]
[355200709,1741003846592,-554.29,0.00014887,2]
[355200710,1741003846602,-10810.84,0.00014887,2]
[355200711,1741003846611,-500.0,0.00014887,2]
[355200712,1741003846621,-500.0,0.00014887,2]
[355200713,1741003846631,-500.0,0.00014887,2]
[355200714,1741003846643,-500.0,0.00014887,2]
[355200715,1741003846653,-566.36,0.00014887,2]
[355200716,1741003846662,-500.0,0.00014887,2]
[355200717,1741003846672,-457.7,0.00014887,2]
[355200718,1741003846682,-500.0,0.00014887,2]
[355200719,1741003846692,-500.0,0.00014887,2]
[355200720,1741003846701,-500.0,0.00014887,2]
[355200721,1741003846712,-543.33,0.00014887,2]
[355200722,1741003846722,-500.0,0.00014887,2]
[355200723,1741003846733,-500.0,0.00014887,2]
[355200724,1741003846743,-885.53087709,0.00014887,2]
[355200725,1741003846753,-500.0,0.00014887,2]
[355200726,1741003846762,-651.4,0.00014887,2]
[355200727,1741003846772,-11797.23,0.00014887,2]
[355200728,1741003846781,-627.05,0.00014887,2]
[355200729,1741003846791,-500.0,0.00014887,2]
[355200730,1741003846801,-5850.38,0.00014887,2]
[355200731,1741003846810,-685.53,0.00014887,2]
[355200732,1741003846820,-500.0,0.00014887,2]
[355200733,1741003846830,-500.0,0.00014887,2]
[355200734,1741003846839,-6765.13,0.00014887,2]
[355200735,1741003846848,-531.74,0.00014887,2]
[355200736,1741003846857,-500.0,0.00014887,2]
[355200737,1741003846867,-615.53,0.00014887,2]
[355200738,1741003846876,-500.0,0.00014887,2]
[355200739,1741003846885,-500.0,0.00014887,2]
[355200740,1741003846894,-753.47,0.00014887,2]
[355200741,1741003846904,-1000.0,0.00014888,2]
[355200742,1741003846913,-177.28,0.00014888,2]
[355200743,1741003846922,-256.51,0.00014888,2]
[355200744,1741003846932,-288.51,0.00014888,2]
[355200745,1741003846941,-399.43438583,0.00014888,2]
[355200746,1741003846951,-2035.698,0.00014888,2]
[355200747,1741003846960,-500.0,0.00014888,2]
[355200748,1741003846969,-421.16,0.00014888,2]
[355200749,1741003846979,-294.41,0.00014888,2]
[355200750,1741003846990,-5020.58900097,0.00014888,2]
[355200751,1741003847000,-500.0,0.00014888,2]
[355200752,1741003847010,-500.0,0.00014888,2]
[355200753,1741003847019,-500.0,0.00014888,2]
[355200754,1741003847029,-500.0,0.00014888,2]
[355200755,1741003847039,-509.98257649,0.00014888,2]
[355200756,1741003847049,-500.0,0.00014888,2]
[355200757,1741003847058,-527.15118395,0.00014888,2]
[355200758,1741003847067,-500.0,0.00014888,2]
[355200759,1741003847077,-500.0,0.00014888,2]
[355200760,1741003847087,-500.0,0.00014888,2]
[355200761,1741003847097,-500.0,0.00014888,2]
[355200762,1741003847106,-225.36,0.00014888,2]
[355200763,1741003847115,-500.0,0.00014888,2]
[355200764,1741003847125,-500.0,0.00014888,2]
[355200765,1741003847134,-500.0,0.00014888,2]
[355200766,1741003847144,-500.0,0.00014888,2]
[355200767,1741003847154,-500.0,0.00014888,2]
[355200768,1741003847163,-500.0,0.00014888,2]
[355200769,1741003847173,-500.0,0.00014888,2]
[355200770,1741003847182,-500.0,0.00014888,2]
[355200771,1741003847192,-466.77,0.00014888,2]
[355200772,1741003847202,-500.0,0.00014888,2]
[355200773,1741003847211,-500.0,0.00014888,2]
[355200774,1741003847220,-500.0,0.00014888,2]
[355200775,1741003847230,-500.0,0.00014888,2]
[355200776,1741003847244,-500.0,0.00014888,2]
[355200777,1741003847254,-217.49,0.00014888,2]
[355200778,1741003847264,-541.09,0.00014888,2]
[355200779,1741003847274,-500.0,0.00014888,2]
[355200780,1741003847284,-1480.44,0.00014888,2]
[355200781,1741003847294,-500.0,0.00014888,2]
[355200782,1741003847304,-282.4,0.00014888,2]
[355200783,1741003847317,-500.0,0.00014888,2]
[355200784,1741003847327,-500.0,0.00014888,2]
[355200785,1741003847337,-981.53,0.00014888,2]
[355200786,1741003847346,-5649.56,0.00014888,2]
[355200787,1741003847356,-500.0,0.00014888,2]
[355200788,1741003847366,-500.0,0.00014889,2]
[355200789,1741003847375,-601.6937092,0.00014889,2]
[355200790,1741003847385,-2937.5786511,0.00014889,2]
[355200791,1741003847395,-79277.30259372,0.0001489,2]
[355200792,1741003847404,-167.9788498,0.00014891,2]
[355200793,1741003847413,-80832.29352069,0.00014899,2]
[355200794,1741003847446,-309.05761843,0.00014899,2]
[355200795,1741003847458,-840.29303918,0.00014899,2]
[355200796,1741003887812,319.69555039,0.000148,2]
[355200797,1741003933103,789842.14634846,0.000148,2]
[355200798,1741003941083,425.28,0.00014057,2]
[355200799,1741003974649,200.0,0.00014063,2]
[355200800,1741003975034,150.0,0.00014063,2]
[355200801,1741003981238,634009.10547474,0.000148,3]
[355200802,1741004029934,930.18,0.00014054,2]
[355200803,1741004061699,180.23,0.00014045,2]
[355200804,1741004106945,155.0,0.00014045,3]
[355200805,1741004144820,1035.05,0.00014039,2]
[355200806,1741004148602,168.91,0.00014039,2]
[355200807,1741004172214,416.26,0.00014016,2]
[355200808,1741004289610,2275.67,0.00013932,2]
[355200809,1741004291037,2000.0,0.00013932,2]
[355200810,1741004312708,474.56,0.00013904,2]
[355200811,1741004391617,723.77,0.00013886,2]
[355200812,1741004410248,155.0,0.00014045,3]
[355200813,1741004435982,264.37,0.00013883,2]
[355200814,1741004441721,1000.0,0.00013883,2]
[355200815,1741004467333,284.74,0.00013883,2]
[355200816,1741004532786,376.2,0.00013883,2]
[355200817,1741004679683,200.0,0.0001393,2]
[355200818,1741004711186,155.0,0.00014045,3]
[355200819,1741004725112,658.61,0.00013924,2]
[355200820,1741004731211,250.0,0.00013918,2]
[355200821,1741004763164,507.0,1.5e-05,2]
[355200822,1741004774630,1225.63,0.00012,2]
[355200823,1741004774773,1225.63,0.00014264,2]
[355200824,1741004780370,463.85,0.00013917,2]
[355200825,1741004832147,250.0,0.00013,2]
[355200826,1741004869805,23900.0,0.00013917,2]
[355200833,1741004940228,183.25,0.00014422,2]
[355200843,1741005006937,155.0,0.00014045,3]
[355200855,1741005032164,-658.61,0.0001462,2]
[355200856,1741005032177,-9.7111698,0.00014628,2]
[355200857,1741005032282,-467.06727,0.00014628,2]
[355200858,1741005032297,-73.2215602,0.00014628,2]
[355200859,1741005032312,-340.84699248,0.00014635,2]
[355200860,1741005032323,-4491.13858632,0.00014785,2]
[355200861,1741005032334,-300.0,0.00014797,2]
[355200862,1741005032345,-4491.13858624,0.00014798,2]
[355200863,1741005032358,-1688.09241666,0.00014799,2]
[355200864,1741005032370,-166.07096927,0.000148,2]
[355200865,1741005032383,-1472.0,0.000148,2]
[355200866,1741005032406,-3574.99182991,0.00014811,2]
[355200867,1741005032433,-916.14675633,0.00014811,2]
[355200868,1741005032444,-1688.09241666,0.00014811,2]
[355200869,1741005032457,-4491.13858624,0.00014823,2]
[355200870,1741005032474,-1688.09241666,0.00014824,2]
[355200871,1741005032487,-4491.13858624,0.00014836,2]
[355200872,1741005032498,-1688.09241666,0.00014837,2]
[355200873,1741005032510,-4491.13858624,0.00014849,2]
[355200875,1741005032522,-1688.09241666,0.00014849,2]
[355200878,1741005032534,-956.0,0.0001486,2]
[355200880,1741005032546,-4491.13858624,0.00014862,2]
[355200882,1741005032557,-1688.09241666,0.00014862,2]
[355200884,1741005032569,-25651.25931654,0.0001487,2]
[355200886,1741005032593,-160.22225983,0.00014873,2]
[355200889,1741005032616,-160.19021712,0.00014873,2]
[355200891,1741005032636,-300.17844,0.00014873,2]
[355200893,1741005032650,-500.0,0.00014873,2]
[355200895,1741005032663,-4491.13858624,0.00014874,2]
[355200897,1741005032676,-1688.09241666,0.00014875,2]
[355200900,1741005032690,-500.0,0.00014884,2]
[355200903,1741005032702,-500.0,0.00014884,2]
[355200906,1741005032716,-500.0,0.00014884,2]
[355200909,1741005032728,-756.7,0.00014884,2]
[355200913,1741005032740,-500.0,0.00014884,2]
[355200916,1741005032753,-503.17392786,0.00014884,2]
[355200919,1741005032767,-778.08,0.00014884,2]
[355200921,1741005032779,-761.56,0.00014884,2]
[355200923,1741005032791,-686.32,0.00014884,2]
[355200926,1741005032803,-500.0,0.00014884,2]
[355200928,1741005032815,-500.0,0.00014884,2]
[355200930,1741005032826,-10912.66,0.00014884,2]
[355200932,1741005032837,-500.0,0.00014884,2]
[355200935,1741005032850,-500.0,0.00014884,2]
[355200937,1741005032862,-610.19,0.00014884,2]
[355200939,1741005032872,-500.0,0.00014884,2]
[355200941,1741005032884,-500.0,0.00014884,2]
[355200944,1741005032895,-506.66685393,0.00014884,2]
[355200946,1741005032906,-500.0,0.00014884,2]
[355200948,1741005032918,-9245.94,0.00014884,2]
[355200950,1741005032929,-500.0,0.00014884,2]
[355200952,1741005032941,-505.42198751,0.00014884,2]
[355200955,1741005032952,-624.75979451,0.00014884,2]
[355200957,1741005032964,-508.64133554,0.00014884,2]
[355200959,1741005032976,-624.26,0.00014884,2]
[355200961,1741005032999,-500.0,0.00014884,2]
[355200964,1741005033015,-517.90856517,0.00014884,2]
[355200966,1741005033027,-500.0,0.00014884,2]
[355200968,1741005033045,-500.0,0.00014884,2]
[355200970,1741005033059,-500.0,0.00014884,2]
[355200972,1741005033071,-500.0,0.00014884,2]
[355200974,1741005033085,-505.59095785,0.00014884,2]
[355200977,1741005033099,-501.06428451,0.00014884,2]
[355200979,1741005033114,-503.0704797,0.00014884,2]
[355200981,1741005033129,-371.0,0.00014885,13]
[355200984,1741005033143,-2295.36286957,0.00014885,2]
[355200986,1741005033156,-1628.558,0.00014885,2]
[355200988,1741005033171,-500.0,0.00014885,2]
[355200990,1741005033184,-500.0,0.00014885,2]
[355200993,1741005033196,-500.0,0.00014885,2]
[355200995,1741005033209,-502.74500982,0.00014885,2]
[355200997,1741005033222,-507.59043045,0.00014885,2]
[355200999,1741005033233,-500.0,0.00014885,2]
[355201001,1741005033246,-500.0,0.00014885,2]
[355201003,1741005033259,-500.38511998,0.00014885,2]
[355201005,1741005033272,-502.92560813,0.00014885,2]
[355201008,1741005033285,-502.79928879,0.00014885,2]
[355201010,1741005033297,-501.68921158,0.00014885,2]
[355201012,1741005033311,-504.86737761,0.00014885,2]
[355201014,1741005033324,-500.34026271,0.00014885,2]
[355201016,1741005033337,-500.0,0.00014885,2]
[355201019,1741005033350,-500.0,0.00014885,2]
[355201021,1741005033361,-501.60860002,0.00014885,2]
[355201023,1741005033373,-500.0,0.00014885,2]
[355201025,1741005033385,-502.60360538,0.00014885,2]
[355201028,1741005033396,-502.48463663,0.00014885,2]
[355201030,1741005033408,-500.8459229,0.00014885,2]
[355201032,1741005033420,-502.56135245,0.00014885,2]
[355201034,1741005033431,-503.39067025,0.00014885,2]
[355201036,1741005033444,-501.30934341,0.00014885,2]
[355201038,1741005033456,-502.52813388,0.00014885,2]
[355201039,1741005033472,-501.67853515,0.00014885,2]
[355201040,1741005033484,-502.58763557,0.00014885,2]
[355201041,1741005033494,-500.97953227,0.00014885,2]
[355201042,1741005033503,-500.0,0.00014885,2]
[355201043,1741005033513,-500.0,0.00014885,2]
[355201044,1741005033523,-501.6587407,0.00014885,2]
[355201045,1741005033773,-505.68139662,0.00014885,2]
[355201046,1741005033792,-502.66249452,0.00014885,2]
[355201047,1741005033802,-500.98175883,0.00014885,2]
[355201048,1741005033812,-500.0,0.00014885,2]
[355201049,1741005033822,-500.0,0.00014885,2]
[355201050,1741005033831,-501.65108296,0.00014885,2]
[355201051,1741005033841,-500.56631107,0.00014885,2]
[355201052,1741005033850,-501.20248009,0.00014885,2]
[355201053,1741005033860,-500.0,0.00014885,2]
[355201054,1741005033869,-500.99545246,0.00014885,2]
[355201055,1741005033878,-500.0,0.00014885,2]
[355201056,1741005033887,-500.0,0.00014885,2]
[355201057,1741005033897,-500.0,0.00014885,2]
[355201058,1741005033907,-500.61795896,0.00014885,2]
[355201059,1741005033916,-500.0,0.00014885,2]
[355201060,1741005033926,-500.0,0.00014885,2]
[355201061,1741005033936,-501.18502454,0.00014885,2]
[355201062,1741005033945,-501.96421958,0.00014885,2]
[355201063,1741005033955,-505.76010179,0.00014885,2]
[355201064,1741005033964,-500.0,0.00014885,2]
[355201065,1741005033973,-502.15232961,0.00014885,2]
[355201066,1741005033983,-500.0,0.00014885,2]
[355201067,1741005033992,-500.57513451,0.00014885,2]
[355201068,1741005034001,-502.42571025,0.00014885,2]
[355201069,1741005034011,-500.0,0.00014885,2]
[355201070,1741005034020,-502.1660564,0.00014885,2]
[355201071,1741005034031,-500.0,0.00014885,2]
[355201072,1741005034045,-500.93760279,0.00014885,2]
[355201073,1741005034055,-500.0,0.00014885,2]
[355201074,1741005034066,-501.14390934,0.00014885,2]
[355201075,1741005034076,-504.2442084,0.00014885,2]
[355201076,1741005034087,-536.65711354,0.00014885,2]
[355201077,1741005034096,-500.0,0.00014885,2]
[355201078,1741005034107,-500.0,0.00014885,2]
[355201079,1741005034118,-507.36750128,0.00014885,2]
[355201080,1741005034128,-500.0,0.00014885,2]
[355201081,1741005034138,-501.09362181,0.00014885,2]
[355201082,1741005034147,-500.0,0.00014885,2]
[355201083,1741005034157,-500.0,0.00014885,2]
[355201084,1741005034167,-500.0,0.00014885,2]
[355201085,1741005034176,-249.72845085,0.00014885,2]
[355201086,1741005034187,-500.0,0.00014885,2]
[355201087,1741005034196,-500.0,0.00014885,2]
[355201088,1741005034207,-500.0,0.00014885,2]
[355201089,1741005034217,-172.2963945,0.00014885,2]
[355201090,1741005034226,-500.0,0.00014885,2]
[355201091,1741005034236,-544.19224437,0.00014885,2]
[355201092,1741005034245,-500.57061562,0.00014885,2]
[355201093,1741005034255,-500.0,0.00014885,2]
[355201094,1741005034264,-500.0,0.00014885,2]
[355201095,1741005034274,-507.77537993,0.00014885,2]
[355201096,1741005034283,-500.72122427,0.00014885,2]
[355201097,1741005034293,-501.58374317,0.00014885,2]
[355201098,1741005034302,-505.15332907,0.00014885,2]
[355201099,1741005034312,-500.0,0.00014885,2]
[355201100,1741005034321,-500.0,0.00014885,2]
[355201101,1741005034331,-501.29703572,0.00014885,2]
[355201102,1741005034340,-500.0,0.00014885,2]
[355201103,1741005034349,-600.6439295,0.00014885,2]
[355201104,1741005034358,-400.38023328,0.00014885,2]
[355201105,1741005034368,-510.87610005,0.00014885,2]
[355201106,1741005034378,-500.0,0.00014885,2]
[355201107,1741005034388,-500.0,0.00014885,2]
[355201108,1741005034398,-501.23083657,0.00014885,2]
[355201109,1741005034407,-500.0,0.00014885,2]
[355201110,1741005034417,-500.0,0.00014885,2]
[355201111,1741005034426,-500.0,0.00014885,2]
[355201112,1741005034435,-500.0,0.00014885,2]
[355201113,1741005034445,-499.99759798,0.00014885,2]
[355201114,1741005034454,-501.72159873,0.00014885,2]
[355201115,1741005034464,-501.22037299,0.00014885,2]
[355201116,1741005034473,-502.11600493,0.00014885,2]
[355201117,1741005034482,-539.57322868,0.00014885,2]
[355201118,1741005034492,-500.0,0.00014885,2]
[355201119,1741005034501,-500.0,0.00014885,2]
[355201120,1741005034511,-500.0,0.00014885,2]
[355201121,1741005034521,-507.07277655,0.00014885,2]
[355201122,1741005034530,-500.83517319,0.00014885,2]
[355201123,1741005034540,-500.0,0.00014885,2]
[355201124,1741005034550,-501.53025579,0.00014885,2]
[355201125,1741005034560,-500.80798386,0.00014885,2]
[355201126,1741005034569,-501.67589154,0.00014885,2]
[355201127,1741005034579,-500.54837065,0.00014885,2]
[355201128,1741005034590,-500.0,0.00014885,2]
[355201129,1741005034599,-644.01984749,0.00014885,2]
[355201130,1741005034609,-500.0,0.00014885,2]
[355201131,1741005034618,-500.0,0.00014885,2]
[355201132,1741005034628,-500.53709432,0.00014885,2]
[355201133,1741005034638,-500.97310578,0.00014885,2]
[355201134,1741005034648,-501.9689428,0.00014885,2]
[355201135,1741005034659,-503.3122088,0.00014885,2]
[355201136,1741005034668,-509.64351588,0.00014885,2]
[355201137,1741005034678,-502.82807122,0.00014885,2]
[355201138,1741005034688,-500.0,0.00014885,2]
[355201139,1741005034698,-500.0,0.00014885,2]
[355201140,1741005034707,-500.0,0.00014885,2]
[355201141,1741005034717,-500.0,0.00014885,2]
[355201142,1741005034727,-500.0,0.00014885,2]
[355201143,1741005034736,-501.69196192,0.00014885,2]
[355201144,1741005034746,-536.39893692,0.00014885,2]
[355201145,1741005034756,-500.25843134,0.00014885,2]
[355201146,1741005034765,-500.0,0.00014885,2]
[355201147,1741005034776,-507.35352232,0.00014885,2]
[355201148,1741005034785,-506.48014209,0.00014885,2]
[355201149,1741005034795,-500.0,0.00014885,2]
[355201150,1741005034804,-501.93443969,0.00014885,2]
[355201151,1741005034814,-504.3224286,0.00014885,2]
[355201152,1741005034823,-500.0,0.00014885,2]
[355201153,1741005034833,-501.40605697,0.00014885,2]
[355201154,1741005034843,-539.85423713,0.00014885,2]
[355201155,1741005034852,-500.0,0.00014885,2]
[355201156,1741005034862,-504.44436271,0.00014885,2]
[355201157,1741005034872,-501.97821976,0.00014885,2]
[355201158,1741005034881,-502.24749411,0.00014885,2]
[355201159,1741005034891,-501.87738229,0.00014885,2]
[355201160,1741005034900,-500.0,0.00014885,2]
[355201161,1741005034910,-500.0,0.00014885,2]
[355201162,1741005034919,-502.83334727,0.00014885,2]
[355201163,1741005034928,-500.72125869,0.00014885,2]
[355201164,1741005034937,-498.02,0.00014885,2]
[355201165,1741005034947,-500.0,0.00014885,2]
[355201166,1741005034956,-501.51421179,0.00014885,2]
[355201167,1741005034965,-500.0,0.00014885,2]
[355201168,1741005034975,-500.0,0.00014885,2]
[355201169,1741005034984,-500.0,0.00014885,2]
[355201170,1741005034994,-502.89591246,0.00014885,2]
[355201171,1741005035004,-501.92028064,0.00014885,2]
[355201172,1741005035013,-500.0,0.00014885,2]
[355201173,1741005035024,-503.32843057,0.00014885,2]
[355201174,1741005035035,-267.38534869,0.00014885,2]
[355201175,1741005035050,-501.66373102,0.00014885,2]
[355201176,1741005035059,-502.75071286,0.00014885,2]
[355201177,1741005035069,-500.0,0.00014885,2]
[355201178,1741005035079,-500.0,0.00014885,2]
[355201179,1741005035088,-501.82730166,0.00014885,2]
[355201180,1741005035097,-511.17804447,0.00014885,2]
[355201181,1741005035106,-500.0,0.00014885,2]
[355201182,1741005035116,-500.0,0.00014885,2]
[355201183,1741005035125,-502.49224861,0.00014885,2]
[355201184,1741005035135,-753.53,0.00014885,2]
[355201185,1741005035144,-504.37873374,0.00014885,2]
[355201186,1741005035153,-577.38,0.00014885,2]
[355201187,1741005035162,-500.0,0.00014885,2]
[355201188,1741005035172,-500.0,0.00014885,2]
[355201189,1741005035181,-390.39949644,0.00014885,2]
[355201190,1741005035190,-502.65733835,0.00014885,2]
[355201191,1741005035200,-500.0,0.00014885,2]
[355201192,1741005035210,-502.34768446,0.00014885,2]
[355201193,1741005035219,-505.40691516,0.00014885,2]
[355201194,1741005035228,-898.24,0.00014885,2]
[355201195,1741005035238,-500.0,0.00014885,2]
[355201196,1741005035246,-500.0,0.00014885,2]
[355201197,1741005035256,-1076.11,0.00014885,2]
[355201198,1741005035265,-500.0,0.00014885,2]
[355201199,1741005035275,-503.52448754,0.00014885,2]
[355201200,1741005035284,-500.0,0.00014885,2]
[355201201,1741005035293,-6635.5,0.00014885,2]
[355201202,1741005035304,-753.19,0.00014885,2]
[355201203,1741005035313,-420.937101,0.00014885,2]
[355201204,1741005035322,-576.81,0.00014885,2]
[355201205,1741005035332,-500.0,0.00014885,2]
[355201206,1741005035340,-500.0,0.00014885,2]
[355201207,1741005035350,-809.49,0.00014885,2]
[355201208,1741005035359,-7665.88,0.00014885,2]
[355201209,1741005035368,-644.802715,0.00014885,2]
[355201210,1741005035378,-500.0,0.00014885,2]
[355201211,1741005035387,-500.0,0.00014885,2]
[355201212,1741005035396,-500.0,0.00014885,2]